[Event "*** Titled Tuesday Blitz"]
[Site "Chess.com"]
[Date "2019.04.02"]
[Round "1"]
[White "Oleg_Papayan"]
[Black "Firouzja2003"]
[Result "0-1"]
[WhiteElo "2501"]
[BlackElo "3086"]
[TimeControl "180+2"]
[EndTime "14:07:38 PDT"]
[Termination "Firouzja2003 won by resignation"]

1. e4 {[%clk 0:03:01.9]} 1... c5 {[%clk 0:03:00.2]} 2. Nf3 {[%clk 0:03:01.8]}
2... d6 {[%clk 0:03:00.8]} 3. Nc3 {[%clk 0:02:59.5]} 3... a6 {[%clk 0:03:00.7]}
4. g3 {[%clk 0:02:58.5]} 4... Nc6 {[%clk 0:02:52.1]} 5. Bg2 {[%clk 0:02:59.3]}
5... e5 {[%clk 0:02:52.6]} 6. h3 {[%clk 0:02:56.7]} 6... g6 {[%clk 0:02:53.6]}
7. O-O {[%clk 0:02:57.5]} 7... Bg7 {[%clk 0:02:55.5]} 8. d3 {[%clk 0:02:56.8]}
8... Nge7 {[%clk 0:02:51.9]} 9. Nd5 {[%clk 0:02:58.1]} 9... Nxd5 {[%clk
0:02:51.5]} 10. exd5 {[%clk 0:03:00]} 10... Ne7 {[%clk 0:02:53.4]} 11. c4 {[%clk
0:03:00.9]} 11... O-O {[%clk 0:02:54]} 12. a3 {[%clk 0:03:00.3]} 12... h6 {[%clk
0:02:54.3]} 13. Rb1 {[%clk 0:02:46.5]} 13... g5 {[%clk 0:02:53.8]} 14. b4 {[%clk
0:02:46.9]} 14... b6 {[%clk 0:02:52.8]} 15. Qb3 {[%clk 0:02:40.7]} 15... Bf5
{[%clk 0:02:46.9]} 16. Nd2 {[%clk 0:02:40.6]} 16... Bg6 {[%clk 0:02:46.5]} 17.
Kh2 {[%clk 0:02:27.6]} 17... Nf5 {[%clk 0:02:44.2]} 18. Bb2 {[%clk 0:02:25.1]}
18... h5 {[%clk 0:02:26.9]} 19. Ne4 {[%clk 0:02:16.4]} 19... Rb8 {[%clk
0:02:10.8]} 20. Bc3 {[%clk 0:02:16.8]} 20... Nd4 {[%clk 0:02:07.6]} 21. Bxd4
{[%clk 0:02:17.5]} 21... cxd4 {[%clk 0:02:09]} 22. Qa4 {[%clk 0:01:44.8]} 22...
f5 {[%clk 0:02:09.5]} 23. Nd2 {[%clk 0:01:46.1]} 23... Ra8 {[%clk 0:02:09]} 24.
c5 {[%clk 0:01:41.9]} 24... b5 {[%clk 0:02:10.2]} 25. Qd1 {[%clk 0:01:34.9]}
25... g4 {[%clk 0:02:04.5]} 26. Rc1 {[%clk 0:01:23.4]} 26... Rc8 {[%clk
0:01:52.3]} 27. cxd6 {[%clk 0:01:20.2]} 27... Rxc1 {[%clk 0:01:47.5]} 28. Qxc1
{[%clk 0:01:21]} 28... Bh6 {[%clk 0:01:49.4]} 29. Qc2 {[%clk 0:01:13.4]} 29...
Qxd6 {[%clk 0:01:27]} 30. Nb3 {[%clk 0:01:14.2]} 30... Bf7 {[%clk 0:01:27.9]}
31. Qc5 {[%clk 0:01:11.9]} 31... Qf6 {[%clk 0:01:24.7]} 32. Na5 {[%clk
0:00:32.8]} 32... h4 {[%clk 0:01:25.8]} 33. Nc6 {[%clk 0:00:31.2]} 33... f4
{[%clk 0:01:16.4]} 34. Qe7 {[%clk 0:00:26.9]} 34... hxg3+ {[%clk 0:01:03.5]} 35.
fxg3 {[%clk 0:00:27.7]} 35... fxg3+ {[%clk 0:01:04.9]} 36. Kh1 {[%clk
0:00:21.5]} 36... Qxf1+ {[%clk 0:01:05.9]} 37. Bxf1 {[%clk 0:00:22.5]} 37...
Bxd5+ {[%clk 0:01:07]} 0-1

[Event "*** Titled Tuesday Blitz"]
[Site "Chess.com"]
[Date "2019.04.02"]
[Round "1"]
[White "advantageLucy"]
[Black "EvgenyT"]
[Result "0-1"]
[WhiteElo "2494"]
[BlackElo "2944"]
[TimeControl "180+2"]
[EndTime "14:07:41 PDT"]
[Termination "EvgenyT won by resignation"]

1. d4 {[%clk 0:03:01.8]} 1... Nf6 {[%clk 0:02:59.7]} 2. Nf3 {[%clk 0:03:02]}
2... b6 {[%clk 0:02:59.5]} 3. Bf4 {[%clk 0:03:02.1]} 3... Bb7 {[%clk 0:03:00]}
4. e3 {[%clk 0:03:02]} 4... e6 {[%clk 0:02:59.4]} 5. Nbd2 {[%clk 0:02:54.2]}
5... Be7 {[%clk 0:02:59.1]} 6. Bd3 {[%clk 0:02:53.9]} 6... Nh5 {[%clk
0:02:58.7]} 7. Bg3 {[%clk 0:02:53]} 7... d6 {[%clk 0:02:56.8]} 8. c3 {[%clk
0:02:47]} 8... Nd7 {[%clk 0:02:56]} 9. Rc1 {[%clk 0:02:47.3]} 9... a6 {[%clk
0:02:55.5]} 10. Qe2 {[%clk 0:02:40.6]} 10... h6 {[%clk 0:02:55.4]} 11. e4 {[%clk
0:02:38.1]} 11... O-O {[%clk 0:02:50.6]} 12. O-O {[%clk 0:02:30.8]} 12... Re8
{[%clk 0:02:26.5]} 13. Rfe1 {[%clk 0:02:24.6]} 13... Nxg3 {[%clk 0:02:23.1]} 14.
hxg3 {[%clk 0:02:24.2]} 14... Bf8 {[%clk 0:02:23]} 15. Nf1 {[%clk 0:02:12.1]}
15... g6 {[%clk 0:02:23.6]} 16. Ne3 {[%clk 0:02:10.5]} 16... Bg7 {[%clk
0:02:24.7]} 17. b4 {[%clk 0:02:09.8]} 17... a5 {[%clk 0:02:16.7]} 18. b5 {[%clk
0:02:07.6]} 18... Qe7 {[%clk 0:02:12]} 19. Qd2 {[%clk 0:02:03]} 19... Rad8
{[%clk 0:02:11.5]} 20. Ng4 {[%clk 0:02:02.6]} 20... Qf8 {[%clk 0:02:08.3]} 21.
c4 {[%clk 0:01:59.3]} 21... e5 {[%clk 0:02:05.7]} 22. d5 {[%clk 0:01:56.4]}
22... h5 {[%clk 0:02:05.1]} 23. Ne3 {[%clk 0:01:56.3]} 23... Bh6 {[%clk
0:02:05.8]} 24. Qc3 {[%clk 0:01:45.4]} 24... Nf6 {[%clk 0:02:01.3]} 25. Rcd1
{[%clk 0:01:44.2]} 25... Bc8 {[%clk 0:02:01.7]} 26. Nh4 {[%clk 0:01:32.4]} 26...
Bg4 {[%clk 0:01:46.3]} 27. f3 {[%clk 0:01:25.4]} 27... Bd7 {[%clk 0:01:46.3]}
28. Nf1 {[%clk 0:01:00.8]} 28... Qe7 {[%clk 0:01:35.7]} 29. Re2 {[%clk
0:00:25.5]} 29... Kg7 {[%clk 0:01:35.1]} 30. Rde1 {[%clk 0:00:26.3]} 30... Bg5
{[%clk 0:01:28.5]} 31. Ne3 {[%clk 0:00:26.2]} 31... Nh7 {[%clk 0:01:24.4]} 32.
f4 {[%clk 0:00:21.8]} 32... Bxh4 {[%clk 0:01:24.1]} 33. gxh4 {[%clk 0:00:23.7]}
33... Qxh4 {[%clk 0:01:24.8]} 34. f5 {[%clk 0:00:24.1]} 34... Nf6 {[%clk
0:01:17.9]} 35. Rf1 {[%clk 0:00:23.7]} 35... Rh8 {[%clk 0:01:14.6]} 36. Qc2
{[%clk 0:00:24]} 36... Ng4 {[%clk 0:01:12.6]} 37. Nxg4 {[%clk 0:00:24.9]} 37...
hxg4 {[%clk 0:01:13.3]} 38. f6+ {[%clk 0:00:18.4]} 38... Kg8 {[%clk 0:01:06.8]}
39. Re3 {[%clk 0:00:18.6]} 39... g3 {[%clk 0:01:05.5]} 0-1

[Event "*** Titled Tuesday Blitz"]
[Site "Chess.com"]
[Date "2019.04.02"]
[Round "1"]
[White "cyber-alekhine2"]
[Black "DagurR"]
[Result "0-1"]
[WhiteElo "2170"]
[BlackElo "2538"]
[TimeControl "180+2"]
[EndTime "14:07:41 PDT"]
[Termination "DagurR won by resignation"]

1. e4 {[%clk 0:02:59.5]} 1... c5 {[%clk 0:03:00.3]} 2. d4 {[%clk 0:02:58.7]}
2... cxd4 {[%clk 0:03:01]} 3. c3 {[%clk 0:02:59.8]} 3... Nf6 {[%clk 0:03:02.5]}
4. e5 {[%clk 0:03:00.4]} 4... Nd5 {[%clk 0:03:03.9]} 5. Nf3 {[%clk 0:03:01.7]}
5... d6 {[%clk 0:03:04.7]} 6. Bc4 {[%clk 0:03:00.5]} 6... Nb6 {[%clk 0:03:04.8]}
7. Bb3 {[%clk 0:02:59.7]} 7... e6 {[%clk 0:02:51.8]} 8. cxd4 {[%clk 0:02:58]}
8... Nc6 {[%clk 0:02:47.3]} 9. exd6 {[%clk 0:02:58.4]} 9... Bxd6 {[%clk
0:02:46.3]} 10. O-O {[%clk 0:02:59.1]} 10... O-O {[%clk 0:02:46.8]} 11. Nc3
{[%clk 0:03:00]} 11... Ne7 {[%clk 0:02:16]} 12. a3 {[%clk 0:03:01.9]} 12... Nbd5
{[%clk 0:02:13.7]} 13. Bg5 {[%clk 0:02:59.5]} 13... Qb6 {[%clk 0:02:02.4]} 14.
Bc2 {[%clk 0:02:10.3]} 14... Ng6 {[%clk 0:01:47.8]} 15. Nxd5 {[%clk 0:01:57.3]}
15... exd5 {[%clk 0:01:49.7]} 16. Qd3 {[%clk 0:01:57.9]} 16... Re8 {[%clk
0:01:36.6]} 17. Rfe1 {[%clk 0:01:55.8]} 17... Bg4 {[%clk 0:01:24.2]} 18. Ne5
{[%clk 0:01:54.9]} 18... Bxe5 {[%clk 0:01:21.2]} 19. dxe5 {[%clk 0:01:54.6]}
19... Qxb2 {[%clk 0:01:12.1]} 20. Rab1 {[%clk 0:01:39.7]} 20... Rxe5 {[%clk
0:01:12.8]} 21. Rec1 {[%clk 0:01:24.6]} 21... Qa2 {[%clk 0:01:08.1]} 22. Be3
{[%clk 0:00:49.3]} 22... Bf5 {[%clk 0:00:56.9]} 23. Qd1 {[%clk 0:00:24.2]} 23...
Bxc2 {[%clk 0:00:54.5]} 24. Rxc2 {[%clk 0:00:26.1]} 24... Qxa3 {[%clk
0:00:54.7]} 25. Rxb7 {[%clk 0:00:27.2]} 25... Rd8 {[%clk 0:00:22.6]} 26. Rcc7
{[%clk 0:00:26.8]} 26... Re7 {[%clk 0:00:19.4]} 27. Bc5 {[%clk 0:00:23.7]} 27...
Rxc7 {[%clk 0:00:19.2]} 28. Rxc7 {[%clk 0:00:24.9]} 28... Qa5 {[%clk 0:00:17.4]}
29. Qc1 {[%clk 0:00:21]} 29... Qxc7 {[%clk 0:00:18.2]} 0-1

[Event "*** Titled Tuesday Blitz"]
[Site "Chess.com"]
[Date "2019.04.02"]
[Round "1"]
[White "MMSANCHEZ"]
[Black "Konavets"]
[Result "0-1"]
[WhiteElo "2449"]
[BlackElo "2811"]
[TimeControl "180+2"]
[EndTime "14:07:45 PDT"]
[Termination "Konavets won by resignation"]

1. d4 {[%clk 0:03:01.9]} 1... g6 {[%clk 0:02:59.9]} 2. Nf3 {[%clk 0:03:02.4]}
2... Bg7 {[%clk 0:03:01.8]} 3. g3 {[%clk 0:03:02.5]} 3... c5 {[%clk 0:03:03.2]}
4. d5 {[%clk 0:03:02.5]} 4... f5 {[%clk 0:03:02.8]} 5. Bg2 {[%clk 0:03:03.5]}
5... Nf6 {[%clk 0:03:04.2]} 6. O-O {[%clk 0:03:04.8]} 6... d6 {[%clk 0:03:05.7]}
7. c4 {[%clk 0:03:06.2]} 7... O-O {[%clk 0:03:07.6]} 8. Nc3 {[%clk 0:03:07.5]}
8... Na6 {[%clk 0:03:08.7]} 9. a3 {[%clk 0:03:03]} 9... Nc7 {[%clk 0:03:09.3]}
10. e4 {[%clk 0:02:59.8]} 10... fxe4 {[%clk 0:03:05.6]} 11. Ng5 {[%clk
0:03:00.3]} 11... a6 {[%clk 0:03:05.2]} 12. Ncxe4 {[%clk 0:02:53]} 12... Nxe4
{[%clk 0:03:06.2]} 13. Bxe4 {[%clk 0:02:53.9]} 13... b5 {[%clk 0:02:53.6]} 14.
Nxh7 {[%clk 0:02:44.3]} 14... Bf5 {[%clk 0:02:44.1]} 15. Nxf8 {[%clk 0:02:18.9]}
15... Bxe4 {[%clk 0:02:44.5]} 16. Qe2 {[%clk 0:02:19.7]} 16... Bf5 {[%clk
0:02:41.1]} 17. Ne6 {[%clk 0:02:19.3]} 17... Nxe6 {[%clk 0:02:40.5]} 18. dxe6
{[%clk 0:02:21.2]} 18... bxc4 {[%clk 0:02:41.9]} 19. Qxc4 {[%clk 0:02:20.1]}
19... d5 {[%clk 0:02:16.7]} 20. Qxc5 {[%clk 0:02:15.9]} 20... Rc8 {[%clk
0:02:17.8]} 21. Qa7 {[%clk 0:02:08.4]} 21... Bh3 {[%clk 0:02:14]} 22. Rd1 {[%clk
0:01:59.1]} 22... Rc2 {[%clk 0:01:36.6]} 23. Bf4 {[%clk 0:01:18.5]} 23... Kh7
{[%clk 0:01:25.4]} 24. Qxa6 {[%clk 0:01:11.4]} 24... Rxb2 {[%clk 0:01:23.3]} 25.
Rac1 {[%clk 0:01:08.2]} 25... d4 {[%clk 0:01:21.5]} 26. Rc8 {[%clk 0:00:43.4]}
26... Qd5 {[%clk 0:01:21.4]} 27. Qc6 {[%clk 0:00:44.8]} 27... Qh5 {[%clk
0:00:35.4]} 28. Re1 {[%clk 0:00:45.5]} 28... Re2 {[%clk 0:00:33.7]} 29. Rc1
{[%clk 0:00:26.5]} 29... Qa5 {[%clk 0:00:31.9]} 30. Rf1 {[%clk 0:00:12.9]} 30...
Re1 {[%clk 0:00:28.4]} 0-1

[Event "*** Titled Tuesday Blitz"]
[Site "Chess.com"]
[Date "2019.04.02"]
[Round "1"]
[White "Nancy11111"]
[Black "viggi38"]
[Result "0-1"]
[WhiteElo "2284"]
[BlackElo "2607"]
[TimeControl "180+2"]
[EndTime "14:07:47 PDT"]
[Termination "viggi38 won by checkmate"]

1. d4 {[%clk 0:03:01.9]} 1... f5 {[%clk 0:03:00.9]} 2. g3 {[%clk 0:03:01.6]}
2... Nf6 {[%clk 0:03:02.4]} 3. Bg2 {[%clk 0:03:02.4]} 3... g6 {[%clk 0:03:04.2]}
4. Nd2 {[%clk 0:03:03]} 4... Bg7 {[%clk 0:03:05.6]} 5. e4 {[%clk 0:03:02.8]}
5... fxe4 {[%clk 0:03:07.1]} 6. Nxe4 {[%clk 0:03:04.2]} 6... O-O {[%clk
0:03:05.3]} 7. Ne2 {[%clk 0:03:03.7]} 7... Nxe4 {[%clk 0:03:04.4]} 8. Bxe4
{[%clk 0:03:03.6]} 8... d5 {[%clk 0:03:04.6]} 9. Bg2 {[%clk 0:03:02]} 9... Bg4
{[%clk 0:02:54.6]} 10. O-O {[%clk 0:03:01.5]} 10... Nc6 {[%clk 0:02:47.4]} 11.
c3 {[%clk 0:03:01]} 11... e5 {[%clk 0:02:43.5]} 12. dxe5 {[%clk 0:02:58.9]}
12... Nxe5 {[%clk 0:02:44.2]} 13. Qxd5+ {[%clk 0:02:54.6]} 13... Kh8 {[%clk
0:02:28.2]} 14. Nf4 {[%clk 0:02:42]} 14... c6 {[%clk 0:02:15.8]} 15. Qxd8 {[%clk
0:02:36.6]} 15... Raxd8 {[%clk 0:02:17.7]} 16. Be3 {[%clk 0:02:28.6]} 16... Nc4
{[%clk 0:01:45.9]} 17. Bxa7 {[%clk 0:02:22.5]} 17... Nxb2 {[%clk 0:01:46.4]} 18.
h3 {[%clk 0:02:20.2]} 18... Bf5 {[%clk 0:01:43.2]} 19. Rac1 {[%clk 0:01:58.8]}
19... Na4 {[%clk 0:01:06.4]} 20. c4 {[%clk 0:01:24.5]} 20... c5 {[%clk
0:00:51.5]} 21. Nd5 {[%clk 0:01:07.9]} 21... Ra8 {[%clk 0:00:43.1]} 22. Bb6
{[%clk 0:01:06.1]} 22... Nxb6 {[%clk 0:00:40.7]} 23. Nxb6 {[%clk 0:01:08]} 23...
Rxa2 {[%clk 0:00:41.9]} 24. g4 {[%clk 0:00:55.3]} 24... Bd3 {[%clk 0:00:41.6]}
25. Rfe1 {[%clk 0:00:33]} 25... Bd4 {[%clk 0:00:40.5]} 26. Re7 {[%clk
0:00:25.4]} 26... Rfxf2 {[%clk 0:00:35.4]} 27. Re8+ {[%clk 0:00:13]} 27... Kg7
{[%clk 0:00:34.1]} 28. Re7+ {[%clk 0:00:11.1]} 28... Kh6 {[%clk 0:00:34.4]} 29.
g5+ {[%clk 0:00:09.7]} 29... Kxg5 {[%clk 0:00:34.6]} 30. Bd5 {[%clk 0:00:09.9]}
30... Rf1# {[%clk 0:00:33.8]} 0-1

[Event "*** Titled Tuesday Blitz"]
[Site "Chess.com"]
[Date "2019.04.02"]
[Round "1"]
[White "GukeshDommaraju"]
[Black "fidezivkovic"]
[Result "1-0"]
[WhiteElo "2630"]
[BlackElo "2310"]
[TimeControl "180+2"]
[EndTime "14:07:50 PDT"]
[Termination "GukeshDommaraju won by resignation"]

1. Nf3 {[%clk 0:03:01.9]} 1... d5 {[%clk 0:02:58.5]} 2. g3 {[%clk 0:03:02.8]}
2... Nf6 {[%clk 0:02:58]} 3. Bg2 {[%clk 0:03:03.7]} 3... g6 {[%clk 0:02:58.1]}
4. O-O {[%clk 0:03:03.2]} 4... Bg7 {[%clk 0:02:58.3]} 5. d4 {[%clk 0:03:04.3]}
5... O-O {[%clk 0:02:58.3]} 6. c4 {[%clk 0:03:05.5]} 6... c6 {[%clk 0:02:58.5]}
7. Nbd2 {[%clk 0:03:06.6]} 7... Bf5 {[%clk 0:02:50.6]} 8. b3 {[%clk 0:03:07.3]}
8... Qc8 {[%clk 0:02:42.4]} 9. Re1 {[%clk 0:02:59.5]} 9... Bh3 {[%clk
0:02:41.5]} 10. Bh1 {[%clk 0:02:58.3]} 10... a5 {[%clk 0:02:41.4]} 11. Ba3
{[%clk 0:02:57.9]} 11... Re8 {[%clk 0:02:32.5]} 12. e4 {[%clk 0:02:56.9]} 12...
dxe4 {[%clk 0:02:30.5]} 13. Nxe4 {[%clk 0:02:55.2]} 13... Nxe4 {[%clk
0:02:30.5]} 14. Rxe4 {[%clk 0:02:57.1]} 14... Bf6 {[%clk 0:02:02.7]} 15. Qd2
{[%clk 0:02:03.5]} 15... Bf5 {[%clk 0:01:56.1]} 16. Re2 {[%clk 0:02:00.2]} 16...
Bg4 {[%clk 0:01:55.5]} 17. Rae1 {[%clk 0:01:59.3]} 17... Qf5 {[%clk 0:01:45]}
18. Re3 {[%clk 0:01:34.9]} 18... Nd7 {[%clk 0:01:32.8]} 19. Ne5 {[%clk
0:01:24.4]} 19... Red8 {[%clk 0:01:17.1]} 20. Nxg4 {[%clk 0:01:11.2]} 20... Qxg4
{[%clk 0:01:16.6]} 21. Bxe7 {[%clk 0:01:12.1]} 21... Bxe7 {[%clk 0:01:13.2]} 22.
Rxe7 {[%clk 0:01:14]} 22... Nf6 {[%clk 0:01:10.5]} 23. d5 {[%clk 0:01:13.2]}
23... cxd5 {[%clk 0:01:03.2]} 24. cxd5 {[%clk 0:01:14.9]} 24... a4 {[%clk
0:01:02.8]} 25. b4 {[%clk 0:01:12.7]} 25... Qf5 {[%clk 0:00:58.7]} 26. R7e5
{[%clk 0:01:11.7]} 26... Qd7 {[%clk 0:00:53.6]} 27. Qf4 {[%clk 0:01:12.3]} 27...
Qd6 {[%clk 0:00:49.2]} 28. Qd4 {[%clk 0:01:10.5]} 28... a3 {[%clk 0:00:44]} 29.
Re7 {[%clk 0:01:10.9]} 29... b6 {[%clk 0:00:22.5]} 30. R1e6 {[%clk 0:01:01]}
30... fxe6 {[%clk 0:00:06.8]} 31. Qxf6 {[%clk 0:01:01.6]} 31... Qxe7 {[%clk
0:00:07]} 32. Qxe7 {[%clk 0:01:02.5]} 32... exd5 {[%clk 0:00:07.4]} 33. Bxd5+
{[%clk 0:01:04]} 33... Rxd5 {[%clk 0:00:05.3]} 34. Qe6+ {[%clk 0:01:05.4]} 34...
Kg7 {[%clk 0:00:05.4]} 35. Qxd5 {[%clk 0:01:07.3]} 35... Rf8 {[%clk 0:00:04.9]}
36. Qd4+ {[%clk 0:01:05.6]} 36... Kg8 {[%clk 0:00:04.6]} 37. Qxb6 {[%clk
0:01:05.6]} 1-0

[Event "*** Titled Tuesday Blitz"]
[Site "Chess.com"]
[Date "2019.04.02"]
[Round "1"]
[White "DiogenesSinopeus"]
[Black "Dedic8"]
[Result "1-0"]
[WhiteElo "2425"]
[BlackElo "2704"]
[TimeControl "180+2"]
[EndTime "14:07:52 PDT"]
[Termination "DiogenesSinopeus won by resignation"]

1. d4 {[%clk 0:03:00.5]} 1... Nf6 {[%clk 0:03:00.8]} 2. c4 {[%clk 0:03:01.8]}
2... e6 {[%clk 0:03:02.2]} 3. Nc3 {[%clk 0:03:03]} 3... Bb4 {[%clk 0:03:03]} 4.
e3 {[%clk 0:03:04.6]} 4... O-O {[%clk 0:03:02.4]} 5. Bd3 {[%clk 0:03:05.9]} 5...
d5 {[%clk 0:03:03.1]} 6. a3 {[%clk 0:03:07.3]} 6... Bxc3+ {[%clk 0:03:02.7]} 7.
bxc3 {[%clk 0:03:09.2]} 7... c5 {[%clk 0:03:04.3]} 8. cxd5 {[%clk 0:03:10.7]}
8... exd5 {[%clk 0:03:04.9]} 9. Ne2 {[%clk 0:03:12]} 9... Nc6 {[%clk 0:03:01.6]}
10. O-O {[%clk 0:03:12.7]} 10... Re8 {[%clk 0:02:53.4]} 11. f3 {[%clk
0:03:13.9]} 11... b6 {[%clk 0:02:27]} 12. Ng3 {[%clk 0:03:14.9]} 12... Bb7
{[%clk 0:02:25.7]} 13. Ra2 {[%clk 0:03:16.1]} 13... Qd7 {[%clk 0:02:11.7]} 14.
Re2 {[%clk 0:03:17]} 14... Rad8 {[%clk 0:02:08.5]} 15. Bb2 {[%clk 0:03:18.3]}
15... h5 {[%clk 0:01:48.4]} 16. Bf5 {[%clk 0:03:03.9]} 16... Qd6 {[%clk
0:01:40.8]} 17. Bc2 {[%clk 0:03:04.7]} 17... Qd7 {[%clk 0:01:37.1]} 18. Bf5
{[%clk 0:03:04.8]} 18... Qc7 {[%clk 0:01:28.6]} 19. Bb1 {[%clk 0:02:58.9]} 19...
Ba6 {[%clk 0:01:27.7]} 20. Bd3 {[%clk 0:02:58.5]} 20... Bxd3 {[%clk 0:01:26.6]}
21. Qxd3 {[%clk 0:03:00.4]} 21... g6 {[%clk 0:00:58.5]} 22. Rd1 {[%clk
0:03:00.3]} 22... h4 {[%clk 0:00:58.1]} 23. Nh1 {[%clk 0:03:01.7]} 23... Re7
{[%clk 0:00:55.1]} 24. Nf2 {[%clk 0:03:01.4]} 24... Rde8 {[%clk 0:00:56.2]} 25.
e4 {[%clk 0:03:02.9]} 25... dxe4 {[%clk 0:00:46.9]} 26. fxe4 {[%clk 0:03:04.8]}
26... Rd8 {[%clk 0:00:33.6]} 27. Qf3 {[%clk 0:02:51.8]} 27... Nh5 {[%clk
0:00:28.9]} 28. e5 {[%clk 0:02:39.6]} 28... Red7 {[%clk 0:00:22.5]} 29. Re4
{[%clk 0:02:09.8]} 29... cxd4 {[%clk 0:00:22.9]} 30. cxd4 {[%clk 0:02:09.6]}
30... Ng7 {[%clk 0:00:15.6]} 31. Ng4 {[%clk 0:02:07]} 31... Nh5 {[%clk
0:00:16.9]} 32. Rc1 {[%clk 0:01:59]} 32... Nxd4 {[%clk 0:00:08.5]} 33. Rxd4
{[%clk 0:01:54.3]} 33... Rxd4 {[%clk 0:00:07.8]} 34. Rxc7 {[%clk 0:01:55.1]}
34... Rd1+ {[%clk 0:00:09.2]} 35. Qf1 {[%clk 0:01:40.3]} 35... Rxf1+ {[%clk
0:00:09.7]} 36. Kxf1 {[%clk 0:01:42.2]} 36... Rd1+ {[%clk 0:00:10.8]} 37. Ke2
{[%clk 0:01:43.4]} 37... Rg1 {[%clk 0:00:12.2]} 38. Kf2 {[%clk 0:01:37.7]} 38...
Rd1 {[%clk 0:00:12.9]} 39. Bc3 {[%clk 0:01:24.8]} 39... g5 {[%clk 0:00:11.2]}
40. Nh6+ {[%clk 0:01:21.5]} 40... Kh7 {[%clk 0:00:12]} 41. Nxf7 {[%clk 0:01:22]}
41... Kg6 {[%clk 0:00:13.6]} 42. e6 {[%clk 0:01:20.8]} 42... Nf4 {[%clk
0:00:14.3]} 43. Ne5+ {[%clk 0:01:19.7]} 43... Kf5 {[%clk 0:00:14.5]} 44. e7
{[%clk 0:01:18.3]} 1-0

[Event "*** Titled Tuesday Blitz"]
[Site "Chess.com"]
[Date "2019.04.02"]
[Round "1"]
[White "vovachesss"]
[Black "zurzan"]
[Result "1-0"]
[WhiteElo "2518"]
[BlackElo "2046"]
[TimeControl "180+2"]
[EndTime "14:07:54 PDT"]
[Termination "vovachesss won by resignation"]

1. e4 {[%clk 0:03:01.9]} 1... d6 {[%clk 0:03:01.9]} 2. d4 {[%clk 0:03:02.7]}
2... Nf6 {[%clk 0:03:02.1]} 3. Nc3 {[%clk 0:03:03]} 3... Nbd7 {[%clk 0:03:01.8]}
4. g3 {[%clk 0:03:02.6]} 4... g6 {[%clk 0:03:01.4]} 5. Bg2 {[%clk 0:03:04]} 5...
Bg7 {[%clk 0:03:02.3]} 6. Nge2 {[%clk 0:03:05.6]} 6... O-O {[%clk 0:03:03.1]} 7.
h3 {[%clk 0:03:07.3]} 7... c6 {[%clk 0:03:04]} 8. Be3 {[%clk 0:03:09]} 8... e5
{[%clk 0:03:04.2]} 9. Qd2 {[%clk 0:03:10.2]} 9... Re8 {[%clk 0:03:02.9]} 10. O-O
{[%clk 0:03:10.4]} 10... Rb8 {[%clk 0:02:51.6]} 11. a4 {[%clk 0:03:10.7]} 11...
Qc7 {[%clk 0:02:42]} 12. dxe5 {[%clk 0:03:08.5]} 12... dxe5 {[%clk 0:02:39.7]}
13. Bxa7 {[%clk 0:03:09.5]} 13... Ra8 {[%clk 0:02:39.9]} 14. Be3 {[%clk
0:03:10.5]} 14... b6 {[%clk 0:02:27.5]} 15. Rfd1 {[%clk 0:03:10.1]} 15... Ba6
{[%clk 0:02:23.6]} 16. Qd6 {[%clk 0:03:09.1]} 16... Qb7 {[%clk 0:02:19.2]} 17.
a5 {[%clk 0:02:56.8]} 17... Bxe2 {[%clk 0:02:15.3]} 18. Nxe2 {[%clk 0:02:52.9]}
18... Rxa5 {[%clk 0:02:15.9]} 19. Rxa5 {[%clk 0:02:44.8]} 19... bxa5 {[%clk
0:02:16.6]} 20. b3 {[%clk 0:02:46.4]} 20... Bf8 {[%clk 0:02:12.3]} 21. Qd3
{[%clk 0:02:42.5]} 21... Nc5 {[%clk 0:02:06.9]} 22. Qc4 {[%clk 0:02:43.2]} 22...
Qb4 {[%clk 0:01:59.3]} 23. Qxb4 {[%clk 0:02:25.2]} 23... axb4 {[%clk 0:01:59.5]}
24. Bxc5 {[%clk 0:02:20]} 24... Bxc5 {[%clk 0:01:59.3]} 25. Nc1 {[%clk
0:02:21.9]} 25... Bd4 {[%clk 0:01:53.5]} 26. Nd3 {[%clk 0:02:16.4]} 26... c5
{[%clk 0:01:54.3]} 27. Kf1 {[%clk 0:02:10.7]} 27... h5 {[%clk 0:01:53.4]} 28.
Ke2 {[%clk 0:02:06]} 28... h4 {[%clk 0:01:54.1]} 29. gxh4 {[%clk 0:02:01.9]}
29... Nh5 {[%clk 0:01:54.5]} 30. Bf3 {[%clk 0:02:02.3]} 30... Nf4+ {[%clk
0:01:53.3]} 31. Nxf4 {[%clk 0:02:03.6]} 31... exf4 {[%clk 0:01:54.3]} 32. Kd3
{[%clk 0:02:03.5]} 32... Kg7 {[%clk 0:01:51.5]} 33. h5 {[%clk 0:01:55.1]} 33...
g5 {[%clk 0:01:49.6]} 34. Kc4 {[%clk 0:01:52.7]} 34... f6 {[%clk 0:01:35.8]} 35.
Rd2 {[%clk 0:01:47.8]} 35... Re7 {[%clk 0:01:27.7]} 36. Re2 {[%clk 0:01:47.6]}
36... Ra7 {[%clk 0:01:27.3]} 37. Bg4 {[%clk 0:01:47]} 37... Ra1 {[%clk
0:01:27.1]} 38. f3 {[%clk 0:01:47.7]} 38... Rg1 {[%clk 0:01:24.4]} 39. Kd5
{[%clk 0:01:47.7]} 39... Rg3 {[%clk 0:01:21.8]} 40. Ke6 {[%clk 0:01:41.5]} 40...
Rg1 {[%clk 0:01:20.9]} 41. Rd2 {[%clk 0:01:41.5]} 41... Ra1 {[%clk 0:01:13.9]}
42. Kf5 {[%clk 0:01:40]} 42... Ra6 {[%clk 0:01:11.1]} 43. e5 {[%clk 0:01:30.6]}
43... fxe5 {[%clk 0:01:04.7]} 44. Kxg5 {[%clk 0:01:31.1]} 44... Rf6 {[%clk
0:01:02.2]} 45. Bf5 {[%clk 0:01:27.5]} 45... Rc6 {[%clk 0:00:58.8]} 46. Rg2
{[%clk 0:01:25.1]} 46... c4 {[%clk 0:00:58.4]} 47. Be4 {[%clk 0:01:20.8]} 47...
Rc7 {[%clk 0:00:54.8]} 48. h6+ {[%clk 0:01:21.2]} 48... Kh8 {[%clk 0:00:52.2]}
49. bxc4 {[%clk 0:01:10.2]} 49... Rxc4 {[%clk 0:00:52.6]} 50. Kf6 {[%clk
0:01:08.3]} 50... Rc6+ {[%clk 0:00:52.7]} 51. Bxc6 {[%clk 0:01:08.9]} 1-0